fUSD/lending_fUSD_20260413
["ID","MTS","AMOUNT","RATE_DAILY","PERIOD"]
[420380218,1776046974525,-1000.0,0.000159,2]
[420380219,1776046975004,-1000.0,0.000159,2]
[420380220,1776046975325,-1000.0,0.000159,2]
[420380221,1776046975880,-1000.0,0.000159,2]
[420380222,1776046976203,-1000.0,0.000159,2]
[420380223,1776046976524,-1000.0,0.000159,2]
[420380224,1776046976895,-1000.0,0.000159,2]
[420380225,1776046977459,-1000.0,0.000159,2]
[420380226,1776046977723,-1000.0,0.000159,2]
[420380227,1776046978366,-1000.0,0.000159,2]
[420380228,1776046978603,-1000.0,0.000159,2]
[420380229,1776046979026,-1000.0,0.000159,2]
[420380230,1776046979517,-1000.0,0.000159,2]
[420380231,1776046979687,-1000.0,0.000159,2]
[420380232,1776046980168,-1000.0,0.000159,2]
[420380233,1776046980523,-1000.0,0.000159,2]
[420380234,1776046980966,-1000.0,0.000159,2]
[420380235,1776046981270,-1000.0,0.000159,2]
[420380236,1776046982601,-1000.0,0.000159,2]
[420380237,1776046982711,-1000.0,0.000159,2]
[420380238,1776046983020,-1000.0,0.000159,2]
[420380239,1776046983225,-1000.0,0.000159,2]
[420380240,1776046987340,-1000.0,0.000159,2]
[420380241,1776046987751,-1000.0,0.000159,2]
[420380242,1776046988254,-1000.0,0.000159,2]
[420380243,1776046988650,-1000.0,0.000159,2]
[420380244,1776046989129,-1000.0,0.000159,2]
[420380245,1776046989287,-1000.0,0.000159,2]
[420380246,1776046989698,-1000.0,0.000159,2]
[420380247,1776046990183,-1000.0,0.000159,2]
[420380248,1776046990614,-1000.0,0.000159,2]
[420380249,1776046990942,-1000.0,0.000159,2]
[420380250,1776046991197,-1000.0,0.000159,2]
[420380251,1776046991525,-1000.0,0.000159,2]
[420380252,1776046992217,-1000.0,0.000159,2]
[420380253,1776046992416,-1000.0,0.000159,2]
[420380254,1776046993370,-1000.0,0.000159,2]
[420380255,1776046993759,-1000.0,0.000159,2]
[420380256,1776046993959,-1000.0,0.000159,2]
[420380257,1776046994125,-1000.0,0.000159,2]
[420380258,1776046999027,-1000.0,0.000159,2]
[420380259,1776046999166,-1000.0,0.000159,2]
[420380260,1776046999377,-1000.0,0.000159,2]
[420380261,1776046999848,-1000.0,0.000159,2]
[420380262,1776047000206,-1000.0,0.000159,2]
[420380263,1776047000515,-1000.0,0.000159,2]
[420380264,1776047000787,-1000.0,0.000159,2]
[420380265,1776047001169,-1000.0,0.000159,2]
[420380266,1776047001506,-1000.0,0.000159,2]
[420380267,1776047001950,-1000.0,0.000159,2]
[420380268,1776047004038,-1000.0,0.000159,2]
[420380269,1776047004323,-1000.0,0.000159,2]
[420380270,1776047009482,-1000.0,0.000159,2]
[420380271,1776047010521,-1000.0,0.000159,2]
[420380272,1776047011411,-1000.0,0.000159,2]
[420380273,1776047012419,-1000.0,0.000159,2]
[420380274,1776047013522,-1000.0,0.000159,2]
[420380275,1776047023021,1053.29056252,0.0003013,120]
[420380276,1776047066389,475.0,0.00030137,120]
[420380277,1776047146146,-248.26155815,0.00015899,2]
[420380278,1776047157245,242.47680559,0.000159,30]
[420380279,1776047158302,363.71520838,0.0001635,30]
[420380280,1776047229982,-150.0,0.0001582,2]
[420380281,1776047230012,-300.0,0.00015899,2]
[420380282,1776047230044,-252.10596353,0.00015899,2]
[420380283,1776047245791,-203.80202211,0.00015899,2]
[420380286,1776047296511,175.63,8.599e-05,2]
[420380287,1776047356752,-744.09201436,0.00015899,2]
[420380288,1776047356785,-500.0,0.00015899,2]
[420380289,1776047356855,-300.0,0.00015899,2]
[420380290,1776047356921,-300.0,0.00015899,2]
[420380291,1776047356962,-409.90798564,0.000159,2]
[420380292,1776047387306,320.0,0.00025448,120]
[420380301,1776047432814,-173.78945003,0.0001579,2]
[420380305,1776047432841,-300.0,0.00015798,2]
[420380308,1776047432854,-1172.45866877,0.00015799,2]
[420380311,1776047432866,-310.64926706,0.00015799,2]
[420380318,1776047432951,-3282.49852878,0.00015799,2]
[420380321,1776047432971,-300.0,0.00015799,2]
[420380322,1776047432989,-1200.0,0.00015799,2]
[420380324,1776047432998,-195.0,0.00015799,2]
[420380326,1776047433011,-5000.0,0.000158,2]
[420380328,1776047433029,-60220.28009685,0.000158,2]
[420380332,1776047433068,-277.70821029,0.000158,2]
[420380334,1776047433081,-1717.03856977,0.000158,2]
[420380338,1776047433135,-2507.7401103,0.000158,2]
[420380341,1776047433162,-427.58498611,0.000158,2]
[420380358,1776047438723,-481.90562716,0.000158,2]
[420380359,1776047438929,-1402.42140726,0.000158,2]
[420380360,1776047438940,-713.71647197,0.000158,2]
[420380361,1776047438953,-896.16431314,0.000158,2]
[420380362,1776047439126,-545.16891688,0.000158,2]
[420380380,1776047439603,-10391.57037895,0.000158,2]
[420380381,1776047439644,-334.615,0.000158,2]
[420380382,1776047439718,-20310.0,0.000158,2]
[420380384,1776047439761,-4055.61632103,0.000158,2]
[420380386,1776047440717,-380.30947352,0.000158,2]
[420380387,1776047440728,-3565.18647994,0.000158,2]
[420380400,1776047443926,-251.75898788,0.000158,2]
[420380401,1776047444636,-5638.61578656,0.000158,2]
[420380405,1776047445637,-4512.41109454,0.000158,2]
[420380406,1776047446974,-14253.04247276,0.000158,2]
[420380407,1776047447000,-6690.96384896,0.000158,2]
[420380408,1776047447021,-290.0,0.000158,2]
[420380409,1776047447127,-6200.47422439,0.000158,2]
[420380410,1776047448302,-733627.61409772,0.000158,2]
[420380411,1776047448320,-9567.46598948,0.000158,2]
[420380412,1776047448434,-3020.22119157,0.000158,2]
[420380413,1776047448451,-12519.17252361,0.000158,2]
[420380414,1776047448678,-6523.89141618,0.000158,2]
[420380417,1776047450155,-800.00006697,0.000158,2]
[420380418,1776047473582,178.251168,0.00029945,120]
[420380419,1776047512631,5948.0,0.00010001,2]
[420380420,1776047523165,373.530462,0.00029809,120]
[420380421,1776047541334,3069.199352,0.0002744,120]
[420380422,1776047568438,186.765231,0.0002744,120]
[420380423,1776047617903,618.184126,0.0002744,120]
[420380424,1776047627148,270.007095,0.0002744,120]
[420380425,1776047697707,246.938293,0.0002744,120]
[420380426,1776047699729,1500.0,0.00030137,120]
[420380427,1776047705802,2000.0,0.00030137,120]
[420380430,1776047713737,2122.0,0.00030137,120]
[420380432,1776047722628,267.270424,0.0002744,120]
[420380433,1776047819236,1534.599675,0.00027342,120]
[420380434,1776047821761,240.404938,0.00027342,120]
[420380436,1776048017422,1002.0,0.00030136,120]
[420380437,1776048074825,767.299837,0.00027342,120]
[420380441,1776048336259,383.649918,0.0002744,120]
[420380442,1776048380043,191.824959,0.00027342,120]
[420380443,1776048426450,230.916028,0.00027342,120]
[420380445,1776048549334,-250.0,0.00013,2]
[420380446,1776048549411,-1349.37,0.00014995,2]
[420380447,1776048549504,-1236.42,0.00015054,2]
[420380448,1776048549559,-162.49599651,0.00015281,2]
[420380449,1776048549626,-150.0,0.00015304,2]
[420380450,1776048549666,-250.0,0.00015323,2]
[420380451,1776048549701,-311.7970686,0.00015343,2]
[420380452,1776048549726,-151.29,0.00015345,2]
[420380453,1776048549813,-250.0,0.00015374,2]
[420380454,1776048549851,-566.9,0.0001546,2]
[420380455,1776048549910,-150.0,0.000155,2]
[420380456,1776048549999,-150.0,0.00015578,2]
[420380457,1776048550059,-288.0,0.00015689,2]
[420380458,1776048550123,-56197.5214,0.0001569,2]
[420380459,1776048550281,-1200.0,0.00015699,2]
[420380460,1776048550443,-3314.2935,0.000157,2]
[420380461,1776048550540,-13345.6723,0.000157,2]
[420380462,1776048550746,-9886.96556403,0.000157,2]
[420380463,1776048550821,-2500.0,0.000157,2]
[420380464,1776048550854,-2324.7285,0.00015753,2]
[420380465,1776048550913,-150.99,0.00015753,2]
[420380466,1776048550968,-299.99,0.00015753,2]
[420380467,1776048551121,-170.781,0.00015773,2]
[420380468,1776048551166,-500.0,0.00015773,2]
[420380469,1776048551233,-159.9872,0.00015773,2]
[420380470,1776048551262,-501.44544862,0.00015773,2]
[420380471,1776048551326,-1783.345,0.00015773,2]
[420380472,1776048551373,-201.87064827,0.00015791,2]
[420380473,1776048551421,-500.0,0.00015791,2]
[420380474,1776048551457,-151.0,0.00015791,2]
[420380475,1776048551517,-500.0,0.00015791,2]
[420380476,1776048551587,-151.0,0.00015791,2]
[420380477,1776048551635,-500.0,0.00015791,2]
[420380478,1776048551722,-151.0,0.00015791,2]
[420380479,1776048551822,-500.0,0.00015791,2]
[420380480,1776048551866,-151.0,0.00015791,2]
[420380481,1776048551941,-500.0,0.00015791,2]
[420380482,1776048551980,-151.0,0.00015791,2]
[420380483,1776048552025,-500.0,0.00015791,2]
[420380484,1776048552070,-151.0,0.00015791,2]
[420380485,1776048552110,-500.0,0.00015791,2]
[420380486,1776048552267,-151.0,0.00015791,2]
[420380487,1776048552289,-500.0,0.00015791,2]
[420380488,1776048552351,-151.0,0.00015791,2]
[420380489,1776048552402,-500.0,0.00015791,2]
[420380490,1776048552453,-151.0,0.00015791,2]
[420380491,1776048552544,-151.0,0.00015791,2]
[420380492,1776048552581,-151.0,0.00015791,2]
[420380493,1776048552741,-160.93888464,0.00015791,2]
[420380494,1776048552814,-295.15110882,0.00015791,2]
[420380495,1776048552888,-151.0,0.00015791,2]
[420380496,1776048553027,-151.0,0.00015791,2]
[420380497,1776048553064,-151.0,0.00015791,2]
[420380498,1776048553124,-151.0,0.00015791,2]
[420380499,1776048553179,-151.0,0.00015791,2]
[420380500,1776048553235,-151.0,0.00015791,2]
[420380501,1776048553278,-151.0,0.00015791,2]
[420380502,1776048553340,-151.0,0.00015791,2]
[420380503,1776048553387,-151.0,0.00015791,2]
[420380504,1776048553471,-151.0,0.00015791,2]
[420380505,1776048553546,-151.0,0.00015791,2]
[420380506,1776048553575,-160.07764278,0.00015791,2]
[420380507,1776048553613,-500.0,0.00015797,2]
[420380508,1776048553681,-500.0,0.00015797,2]
[420380509,1776048553706,-500.0,0.00015797,2]
[420380510,1776048553750,-500.0,0.00015797,2]
[420380511,1776048553788,-500.0,0.00015797,2]
[420380512,1776048553829,-500.0,0.00015797,2]
[420380513,1776048553907,-500.0,0.00015797,2]
[420380514,1776048554079,-500.0,0.00015797,2]
[420380515,1776048554318,-500.0,0.00015797,2]
[420380516,1776048554492,-500.0,0.00015797,2]
[420380517,1776048554532,-500.0,0.00015797,2]
[420380518,1776048554667,-500.0,0.00015797,2]
[420380519,1776048554706,-250.0,0.00015797,2]
[420380520,1776048554754,-500.0,0.00015797,2]
[420380521,1776048554840,-514.79212544,0.00015797,2]
[420380522,1776048555043,-159.9233576,0.00015797,2]
[420380523,1776048555164,-166.42311267,0.00015797,2]
[420380524,1776048555329,-500.0,0.00015797,2]
[420380525,1776048555452,-500.0,0.00015797,2]
[420380526,1776048555520,-500.0,0.00015797,2]
[420380527,1776048555566,-500.0,0.00015797,2]
[420380528,1776048555644,-500.0,0.00015797,2]
[420380529,1776048555698,-500.0,0.00015797,2]
[420380530,1776048555743,-500.0,0.00015797,2]
[420380531,1776048555788,-500.0,0.00015797,2]
[420380532,1776048555904,-500.0,0.00015797,2]
[420380533,1776048555978,-500.0,0.00015797,2]
[420380534,1776048556008,-500.0,0.00015797,2]
[420380535,1776048556065,-500.0,0.00015797,2]
[420380536,1776048556103,-500.0,0.00015797,2]
[420380537,1776048556148,-500.0,0.00015797,2]
[420380538,1776048556215,-500.0,0.00015797,2]
[420380539,1776048556298,-241.05,0.00015799,2]
[420380540,1776048556388,-307.47895565,0.00015799,2]
[420380541,1776048556524,-500.0,0.00015799,2]
[420380542,1776048556602,-521.34524642,0.00015799,2]
[420380543,1776048556683,-242.0048742,0.00015799,2]
[420380544,1776048556770,-500.0,0.00015799,2]
[420380545,1776048556824,-646.67699819,0.00015799,2]
[420380546,1776048556901,-261473.1469,0.000158,2]
[420380547,1776048557074,-186.94343512,0.000158,2]
[420380548,1776048557171,-151.0,0.000158,2]
[420380549,1776048557290,-1535.81133244,0.00015801,2]
[420380550,1776048558265,-500.0,0.00015797,2]
[420380551,1776048558824,-500.0,0.00015797,2]
[420380552,1776048558864,-500.0,0.00015797,2]
[420380553,1776048558910,-500.0,0.00015797,2]
[420380554,1776048558979,-500.0,0.00015797,2]
[420380555,1776048559028,-500.0,0.00015797,2]
[420380556,1776048559066,-500.0,0.00015797,2]
[420380557,1776048559117,-500.0,0.00015797,2]
[420380558,1776048559159,-500.0,0.00015797,2]
[420380559,1776048559201,-2516.77762376,0.00015801,2]
[420380560,1776048559280,-230.14666224,0.00015801,2]
[420380569,1776048633601,-150.0,0.00015612,2]
[420380570,1776048633620,-121.90586894,0.0001569,2]
[420380571,1776048633634,-530.93601236,0.0001569,2]
[420380572,1776048633648,-588.38156529,0.0001569,2]
[420380573,1776048633668,-76881.64465341,0.0001569,2]
[420380574,1776048633681,-600.0,0.00015695,2]
[420380575,1776048633690,-653.59933323,0.00015695,2]
[420380576,1776048633975,-5783.25043074,0.000157,2]
[420380577,1776048633985,-500.0,0.00015797,2]
[420380578,1776048634001,-500.0,0.00015797,2]
[420380579,1776048634013,-500.0,0.00015797,2]
[420380580,1776048634025,-500.0,0.00015797,2]
[420380581,1776048634038,-500.0,0.00015797,2]
[420380582,1776048634050,-500.0,0.00015797,2]
[420380583,1776048634066,-421.24721104,0.00015797,2]
[420380584,1776048634079,-500.0,0.00015797,2]
[420380585,1776048634095,-190.3035438,0.000158,2]
[420380586,1776048634106,-132.20453046,0.00015801,2]
[420380587,1776048634127,-3076.1443039,0.00015801,2]
[420380588,1776048634136,-18379.7133202,0.00015801,2]
[420380589,1776048634146,-18850.5141379,0.00015801,2]
[420380590,1776048634161,-152.05692923,0.00015801,2]
[420380591,1776048634180,-155.78619593,0.00015801,2]
[420380592,1776048634190,-196.11919851,0.00015862,2]
[420380593,1776048634217,-241.05,0.00016073,2]
[420380594,1776048634234,-146.19892884,0.00016321,2]
[420380595,1776048634250,-356.07195781,0.00016321,2]
[420380596,1776048634273,-241.07,0.00016347,2]
[420380597,1776048634285,-98.95295402,0.00016469,2]
[420380647,1776048639434,-546.95930116,0.000159,2]
[420380650,1776048639468,-7147.02181373,0.000159,2]
[420380658,1776048639555,-615.21547425,0.000159,2]
[420380660,1776048639575,-258.6,0.000159,2]
[420380663,1776048639588,-383.736,0.000159,2]
[420380673,1776048639712,-1599.33389602,0.000159,2]
[420380675,1776048639724,-480.71189667,0.000159,2]
[420380678,1776048639738,-359.12526345,0.000159,2]
[420380680,1776048639759,-608.91577313,0.00016469,2]
[420380682,1776048639779,-1292.13127285,0.00016469,2]
[420380684,1776048639793,-151.0,0.00016469,2]
[420380685,1776048639807,-303.43623834,0.00016922,2]
[420380688,1776048640802,-12459.38376166,0.00016922,2]
[420380689,1776048640813,-320.0,0.00016965,2]
[420380690,1776048640828,-1047.2565611,0.00017056,2]
[420380691,1776048640872,-8839.70900289,0.00017056,2]
[420380692,1776048640889,-5783.25043073,0.00017056,2]
[420380693,1776048640899,-150.0,0.00017171,2]
[420380694,1776048640913,-182.95,0.00017175,2]
[420380695,1776048640946,-175.63,0.00017198,2]
[420380696,1776048640959,-600.0,0.00017259,2]
[420380697,1776048640977,-5000.0,0.00017259,2]
[420380698,1776048640994,-250.0,0.00017259,2]
[420380699,1776048641006,-150.3935,0.000173,2]
[420380700,1776048641046,-150.0,0.00017399,2]
[420380701,1776048641059,-190.3035438,0.00017787,2]
[420380702,1776048641081,-500.0,0.00017893,2]
[420380703,1776048641112,-508.90541912,0.00017893,2]
[420380704,1776048641146,-500.0,0.00017893,2]
[420380705,1776048641155,-521.30121152,0.00017893,2]
[420380706,1776048641185,-182.95,0.0001832,2]
[420380707,1776048641196,-3327.96947488,0.00018411,2]
[420380708,1776048641236,-375.0783389,0.00018411,2]
[420380712,1776048642895,-151.0,0.00016965,2]
[420380714,1776048642905,-353.33046274,0.00018411,2]
[420380717,1776048642966,-500.0,0.000158,2]
[420380718,1776048642978,-46.0,0.00018411,2]
[420380719,1776048643306,-500.0,0.000158,2]
[420380720,1776048643333,-500.0,0.000158,2]
[420380721,1776048643343,-500.0,0.000158,2]
[420380722,1776048643359,-5077.62333315,0.00018411,2]
[420380734,1776048646754,-500.0,0.000158,2]
[420380736,1776048646791,-186.152189,0.000158,2]
[420380738,1776048646802,-151.0,0.00018411,2]
[420380740,1776048646845,-586.087811,0.00018411,2]
[420380743,1776048646877,-120.87614332,0.00018411,2]
[420380745,1776048646903,-5783.25043073,0.00018411,2]
[420380747,1776048646915,-628.49750344,0.00018528,2]
[420380750,1776048646936,-710.41,0.00018528,2]
[420380807,1776048696770,562.97489954,0.0003013,120]
[420380808,1776048936074,49075.81592821,0.0003013,120]
[420380811,1776049165970,1029.93407687,0.0003,120]
[420380818,1776049263192,1021.253679,0.00024439,120]
[420380819,1776049270844,235.94775,0.00024277,120]
[420380821,1776049320915,1045.38347,0.00026558,120]
[420380822,1776049332092,-167.22217849,0.000109,2]
[420380823,1776049332131,-832.77782151,0.00011,2]
[420380824,1776049333940,-1000.0,0.00011,2]
[420380825,1776049334394,-775.97466315,0.00011,2]
[420380826,1776049334447,-224.02533685,0.00011,2]
[420380827,1776049334597,-80.97466315,0.00011,2]
[420380828,1776049334626,-919.02533685,0.00011899,2]
[420380829,1776049334915,-280.97466315,0.00011899,2]
[420380830,1776049334937,-300.0,0.00011899,2]
[420380831,1776049334959,-419.02533685,0.000119,2]
[420380832,1776049335090,-1000.0,0.000119,2]
[420380833,1776049335178,-1000.0,0.000119,2]
[420380834,1776049335293,-1000.0,0.000119,2]
[420380835,1776049335651,-1000.0,0.000119,2]
[420380836,1776049335958,-1000.0,0.000119,2]
[420380837,1776049336302,-1000.0,0.000119,2]
[420380838,1776049336578,-1000.0,0.000119,2]
[420380839,1776049336936,-1000.0,0.000119,2]
[420380840,1776049337233,-1000.0,0.000119,2]
[420380841,1776049337637,-1000.0,0.000119,2]
[420380842,1776049338147,-1000.0,0.000119,2]
[420380843,1776049338418,-1000.0,0.000119,2]
[420380844,1776049338717,-1000.0,0.000119,2]
[420380845,1776049339667,-1000.0,0.000119,2]
[420380846,1776049339863,-1000.0,0.000119,2]
[420380847,1776049339951,-1000.0,0.000119,2]
[420380848,1776049340057,-1000.0,0.000119,2]
[420380849,1776049340372,-1000.0,0.000119,2]
[420380850,1776049340708,-1000.0,0.000119,2]
[420380851,1776049341085,-1000.0,0.000119,2]
[420380852,1776049341435,-1000.0,0.000119,2]
[420380853,1776049341752,-1000.0,0.000119,2]
[420380854,1776049342246,-1000.0,0.000119,2]
[420380855,1776049342534,-1000.0,0.000119,2]
[420380856,1776049342828,-1000.0,0.000119,2]
[420380857,1776049343266,-1000.0,0.000119,2]
[420380858,1776049343553,-1000.0,0.000119,2]
[420380859,1776049343751,-1000.0,0.000119,2]
[420380860,1776049344117,-1000.0,0.000119,2]
[420380861,1776049344450,-1000.0,0.000119,2]
[420380862,1776049344867,-1000.0,0.000119,2]
[420380863,1776049345207,-1000.0,0.000119,2]
[420380864,1776049345539,-1000.0,0.000119,2]
[420380865,1776049345847,-1000.0,0.000119,2]
[420380866,1776049346311,-1000.0,0.000119,2]
[420380867,1776049346833,-1000.0,0.000119,2]
[420380868,1776049347299,-1000.0,0.000119,2]
[420380869,1776049347494,-1000.0,0.000119,2]
[420380870,1776049347890,-1000.0,0.000119,2]
[420380871,1776049348294,-1000.0,0.000119,2]
[420380872,1776049348947,-1000.0,0.000119,2]
[420380873,1776049349453,-1000.0,0.000119,2]
[420380874,1776049350227,-1000.0,0.000119,2]
[420380875,1776049350694,-1000.0,0.000119,2]
[420380876,1776049350839,-1000.0,0.000119,2]
[420380877,1776049350990,-1000.0,0.000119,2]
[420380878,1776049351178,-1000.0,0.000119,2]
[420380879,1776049351428,-1000.0,0.000119,2]
[420380880,1776049351594,-1000.0,0.000119,2]
[420380881,1776049353120,-1000.0,0.000119,2]
[420380882,1776049353430,-1000.0,0.000119,2]
[420380883,1776049353788,-1000.0,0.000119,2]
[420380884,1776049354141,-1000.0,0.000119,2]
[420380885,1776049354298,-1000.0,0.000119,2]
[420380886,1776049356189,-1000.0,0.000119,2]
[420380887,1776049357169,-1000.0,0.000119,2]
[420380888,1776049357431,-1000.0,0.000119,2]
[420380889,1776049357933,-1000.0,0.000119,2]
[420380890,1776049358087,-1000.0,0.000119,2]
[420380891,1776049358490,-1000.0,0.000119,2]
[420380892,1776049358766,-1000.0,0.000119,2]
[420380893,1776049359064,-1000.0,0.000119,2]
[420380894,1776049359448,-1000.0,0.000119,2]
[420380895,1776049359738,-1000.0,0.000119,2]
[420380896,1776049360140,-1000.0,0.000119,2]
[420380897,1776049360818,-1000.0,0.000119,2]
[420380898,1776049360944,-1000.0,0.000119,2]
[420380899,1776049361308,-1000.0,0.000119,2]
[420380900,1776049361589,-1000.0,0.000119,2]
[420380901,1776049361825,-1000.0,0.000119,2]
[420380902,1776049362339,-1000.0,0.000119,2]
[420380903,1776049362584,-1000.0,0.000119,2]
[420380904,1776049363193,4975.749269,0.00025506,120]
[420380905,1776049363239,-1000.0,0.000119,2]
[420380906,1776049363634,-1000.0,0.000119,2]
[420380907,1776049364310,-1000.0,0.000119,2]
[420380908,1776049364430,-1000.0,0.000119,2]
[420380909,1776049364728,-1000.0,0.000119,2]
[420380910,1776049364843,-1000.0,0.000119,2]
[420380911,1776049365247,-1000.0,0.000119,2]
[420380912,1776049365584,-1000.0,0.000119,2]
[420380913,1776049365934,-1000.0,0.000119,2]
[420380914,1776049366229,-1000.0,0.000119,2]
[420380915,1776049366581,-1000.0,0.000119,2]
[420380916,1776049366804,687.286463,0.00024685,120]
[420380917,1776049366976,-1000.0,0.000119,2]
[420380918,1776049367343,-1000.0,0.000119,2]
[420380919,1776049368034,-1000.0,0.000119,2]
[420380920,1776049368182,-1000.0,0.000119,2]
[420380921,1776049368363,-1000.0,0.000119,2]
[420380922,1776049368714,-1000.0,0.000119,2]
[420380923,1776049369187,-1000.0,0.000119,2]
[420380924,1776049369530,-1000.0,0.000119,2]
[420380925,1776049370364,-1000.0,0.000119,2]
[420380926,1776049370489,-1000.0,0.000119,2]
[420380927,1776049371523,-1000.0,0.000119,2]
[420380928,1776049371775,-1000.0,0.000119,2]
[420380929,1776049372397,-1000.0,0.000119,2]
[420380930,1776049372596,-1000.0,0.000119,2]
[420380931,1776049372754,-1000.0,0.000119,2]
[420380932,1776049374744,-1000.0,0.000119,2]
[420380933,1776049375219,-1000.0,0.000119,2]
[420380934,1776049375481,-1000.0,0.000119,2]
[420380935,1776049376085,-1000.0,0.000119,2]
[420380936,1776049376202,-1000.0,0.000119,2]
[420380937,1776049376625,-559.73900758,0.000119,2]
[420380938,1776049390526,-1000.0,0.00013089,2]
[420380939,1776049393490,-109.0,0.00013089,2]
[420380940,1776049393532,-189.94082826,0.00015261,2]
[420380941,1776049393571,-453.1742,0.00015489,2]
[420380942,1776049393610,-150.0,0.000155,2]
[420380943,1776049393650,-97.88497174,0.00015522,2]
[420380944,1776049394751,-365.02502826,0.00015522,2]
[420380945,1776049394787,-151.0,0.00015581,2]
[420380946,1776049394816,-151.0,0.00015581,2]
[420380947,1776049394842,-151.0,0.00015581,2]
[420380948,1776049394874,-151.0,0.00015581,2]
[420380949,1776049394902,-30.97497174,0.00015581,2]
[420380950,1776049395759,-120.02502826,0.00015581,2]
[420380951,1776049395788,-151.0,0.00015581,2]
[420380952,1776049395818,-151.0,0.00015581,2]
[420380953,1776049395848,-151.0,0.00015581,2]
[420380954,1776049395880,-151.0,0.00015581,2]
[420380955,1776049395907,-151.0,0.00015581,2]
[420380956,1776049395931,-124.97497174,0.00015581,2]
[420380957,1776049397895,-75.02502826,0.00015581,2]
[420380958,1776049397922,-500.0,0.00015589,2]
[420380959,1776049397948,-302.67389874,0.00015589,2]
[420380960,1776049397979,-122.301073,0.00015589,2]
[420380961,1776049400146,-92.64059949,0.00015589,2]
[420380962,1776049400170,-500.0,0.00015589,2]
[420380963,1776049400209,-169.40341194,0.00015589,2]
[420380964,1776049400250,-237.95598857,0.0001559,2]
[420380965,1776049402046,-1000.0,0.0001559,2]
[420380966,1776049402354,-1000.0,0.0001559,2]
[420380967,1776049402832,-1000.0,0.0001559,2]
[420380968,1776049403221,-1000.0,0.0001559,2]
[420380969,1776049404167,-1000.0,0.0001559,2]
[420380970,1776049404417,-1000.0,0.0001559,2]
[420380971,1776049404818,-1000.0,0.0001559,2]
[420380972,1776049405056,-1000.0,0.0001559,2]
[420380978,1776049411906,-440.261,0.000107,2]
[420380979,1776049412881,209.379956,0.00024685,120]
[420380980,1776049417605,-1000.0,0.000107,2]
[420380981,1776049418427,-1000.0,0.000107,2]
[420380982,1776049418791,-1000.0,0.000107,2]
[420380983,1776049419286,-1000.0,0.000107,2]
[420380986,1776049420789,-1000.0,0.000107,2]
[420380987,1776049421241,-1000.0,0.000107,2]
[420380988,1776049421643,-1000.0,0.000107,2]
[420380989,1776049423570,-1000.0,0.000107,2]
[420380990,1776049424345,-1000.0,0.000107,2]
[420380991,1776049425761,-1000.0,0.000107,2]
[420380992,1776049426631,-1000.0,0.000107,2]
[420380993,1776049427852,-1000.0,0.000107,2]
[420380994,1776049431665,-1000.0,0.000107,2]
[420380995,1776049432623,-1000.0,0.000107,2]
[420380996,1776049433762,-1000.0,0.000107,2]
[420380997,1776049438285,-200.0,0.000107,2]
[420380998,1776049477672,-300.0,0.00010699,2]